[Event "POL-chT 1 Liga 2019"]
[Site "Dzwirzyno"]
[Date "2019.09.12"]
[Round "6.6"]
[White "Gosciniak, Maria"]
[Black "Lach, Aleksandra"]
[Result "0-1"]
[ECO "C10"]
[WhiteElo "2132"]
[BlackElo "2173"]
[Annotator "NA"]
[PlyCount "142"]
[EventDate "2019.09.07"]
[EventType "team-tourn"]
[EventCountry "POL"]
[SourceTitle "playchess.com"]
[Source "ChessBase"]
[SourceQuality "1"]
[TimeControl "40/5400+30:1800+30"]

1. e4 {[%emt 0:00:00]} e6 {[%emt 0:00:00]} 2. d4 {[%emt 0:00:00]} d5 {[%emt 0:00:16]} 3. Nc3 {[%emt 0:00:00]} dxe4 {[%emt 0:00:11]} 4. Nxe4 {[%emt 0:00:00]} Nd7 {[%emt 0:00:18]} 5. Nf3 {[%emt 0:02:00]} Ngf6 {[%emt 0:01:13]} 6. Nxf6+ {[%emt 0:03:26]} Nxf6 {[%emt 0:05:37]} 7. c3 {[%emt 0:00:06]} c5 {[%emt 0:09:50]} 8. Bg5 {[%emt 0:08:17]} cxd4 {[%emt 0:06:29]} 9. Bb5+ {[%emt 0:04:19]} Bd7 {[%emt 0:03:40]} 10. Bxd7+ {[%emt 0:00:25]} Qxd7 {[%emt 0:00:11]} 11. Bxf6 {[%emt 0:00:03]} gxf6 {[%emt 0:00:15]} 12. Qxd4 {[%emt 0:00:08]} Qxd4 {[%emt 0:02:41]} 13. Nxd4 {[%emt 0:00:02]} Bc5 {[%emt 0:04:20]} 14. Nb3 {[%emt 0:01:52]} Bb6 {[%emt 0:01:09]} 15. a4 {[%emt 0:05:38]} a5 {[%emt 0:05:25]} 16. O-O {[%emt 0:17:59]} Rc8 {[%emt 0:13:11]} 17. Nd2 {[%emt 0:11:27]} Ke7 {[%emt 0:02:30]} 18. Rfd1 {[%emt 0:01:26]} Rhd8 {[%emt 0:06:33]} 19. Nf3 {[%emt 0:12:24]} e5 {[%emt 0:14:03]} 20. Nd2 {[%emt 0:04:54]} f5 {[%emt 0:02:46]} 21. Kf1 {[%emt 0:00:30]} f6 {[%emt 0:02:47]} 22. Rac1 {[%emt 0:04:48]} Rd3 {[%emt 0:03:14]} 23. Nb1 {[%emt 0:08:17]} Rxd1+ {[%emt 0:04:04]} 24. Rxd1 {[%emt 0:00:02]} Rc4 {[%emt 0:00:52]} 25. b3 {[%emt 0:00:05]} Rf4 {[%emt 0:00:17]} 26. Rd2 {[%emt 0:00:36]} Rh4 {[%emt 0:00:25]} 27. h3 {[%emt 0:00:43]} e4 {[%emt 0:00:49]} 28. Re2 {[%emt 0:01:42]} Bc5 {[%emt 0:04:09]} 29. Nd2 {[%emt 0:00:58]} Kd7 {[%emt 0:00:18]} 30. Nc4 {[%emt 0:00:10]} b6 {[%emt 0:00:01]} 31. Rd2+ {[%emt 0:02:52]} Kc7 {[%emt 0:00:30]} 32. Ne3 {[%emt 0:07:50]} Bxe3 {[%emt 0:01:26]} 33. fxe3 {[%emt 0:00:01]} f4 {[%emt 0:00:12]} 34. Kf2 {[%emt 0:00:57]} f3 {[%emt 0:02:58]} 35. Kg3 {[%emt 0:01:16]} fxg2 {[%emt 0:00:36]} 36. Rxg2 {[%emt 0:00:08]} Rh5 {[%emt 0:00:19]} 37. Rf2 {[%emt 0:00:53]} Rg5+ {[%emt 0:01:41]} 38. Kf4 {[%emt 0:00:40]} Re5 {[%emt 0:00:34]} 39. Rg2 {[%emt 0:00:19]} Kc6 {[%emt 0:01:34]} 40. Rg7 {[%emt 0:00:00]} Rh5 {[%emt 0:00:00]} 41. Kxe4 {[%emt 0:06:19]} Rh4+ {[%emt 0:03:50]} 42. Kd3 {[%emt 0:06:36]} Rxh3 {[%emt 0:05:59]} 43. Rf7 {[%emt 0:00:02]} Rh6 {[%emt 0:00:38]} 44. Kd4 {[%emt 0:02:52]} b5 {[%emt 0:07:44]} 45. axb5+ {[%emt 0:02:00]} Kxb5 {[%emt 0:00:02]} 46. e4 {[%emt 0:00:24]} Kc6 {[%emt 0:02:27]} 47. c4 {[%emt 0:01:15]} Kb6 {[%emt 0:01:08]} 48. Kd5 {[%emt 0:07:11]} Rh5+ {[%emt 0:01:47]} 49. Kd6 {[%emt 0:00:52]} Rh3 {[%emt 0:00:28]} 50. c5+ {[%emt 0:01:14]} Ka6 {[%emt 0:00:01]} 51. Kc7 {[%emt 0:01:08]} Rxb3 {[%emt 0:01:37]} 52. Rxf6+ {[%emt 0:00:12]} Ka7 {[%emt 0:00:01]} 53. c6 {[%emt 0:00:13]} Re3 {[%emt 0:00:54]} 54. Kd7 {[%emt 0:03:05]} Rc3 {[%emt 0:00:33]} 55. Kc8 {[%emt 0:04:40]} a4 {[%emt 0:01:01]} 56. Rf7+ {[%emt 0:01:26]} Ka6 {[%emt 0:03:14]} 57. c7 {[%emt 0:00:12]} a3 {[%emt 0:00:15]} 58. Rxh7 a2 {[%emt 0:00:46]} 59. Rh6+ {[%emt 0:01:42]} Ka7 {[%emt 0:00:49]} 60. Rh1 {[%emt 0:00:08]} Kb6 {[%emt 0:00:06]} 61. Ra1 {[%emt 0:00:58]} Rxc7+ {[%emt 0:00:05]} 62. Kd8 {[%emt 0:00:03]} Ra7 {[%emt 0:01:47]} 63. Kc8 {[%emt 0:00:48]} Kc5 {[%emt 0:02:00]} 64. Kb8 {[%emt 0:00:05]} Ra3 {[%emt 0:00:09]} 65. Kb7 {[%emt 0:00:03]} Kd4 {[%emt 0:00:12]} 66. Kc6 {[%emt 0:00:16]} Kxe4 {[%emt 0:00:18]} 67. Kc5 {[%emt 0:00:06]} Kd3 {[%emt 0:00:21]} 68. Kb4 {[%emt 0:00:02]} Ra8 {[%emt 0:00:10]} 69. Kb3 {[%emt 0:00:25]} Rb8+ {[%emt 0:00:13]} 70. Ka3 {[%emt 0:02:13]} Kc2 {[%emt 0:00:29]} 71. Rxa2+ {[%emt 0:00:16]} Kc3 {[%emt 0:00:02]} 0-1

[Event "POL-chT 1 Liga 2019"]
[Site "Dzwirzyno"]
[Date "2019.09.12"]
[Round "6.7"]
[White "Klekowski, Maciej"]
[Black "Golubka, Petro"]
[Result "1/2-1/2"]
[ECO "A22"]
[WhiteElo "2473"]
[BlackElo "2479"]
[Annotator "ChessBase"]
[PlyCount "96"]
[EventDate "2019.09.07"]
[EventType "team-tourn"]
[EventCountry "POL"]
[SourceTitle "playchess.com"]
[Source "ChessBase"]
[SourceQuality "1"]
[TimeControl "40/5400+30:1800+30"]

1. c4 {[%emt 0:02:08]} e5 {[%emt 0:00:00]} 2. g3 {[%emt 0:00:19]} Nf6 {[%emt 0:00:00]} 3. Nc3 {[%emt 0:00:19]} Bb4 {[%emt 0:00:07]} 4. Bg2 {[%emt 0:00:07]} O-O {[%emt 0:00:08]} 5. Nf3 {[%emt 0:01:38]} Nc6 {[%emt 0:00:19]} 6. O-O {[%emt 0:00:09]} Re8 {[%emt 0:00:08]} 7. d3 {[%emt 0:02:35]} h6 {[%emt 0:00:49]} 8. Nd5 {[%emt 0:03:05]} a5 {[%emt 0:05:44]} 9. e3 {[%emt 0:20:31]} Bf8 {[%emt 0:06:37]} 10. e4 {[%emt 0:03:54]} Bc5 {[%emt 0:01:01]} 11. Ne3 {[%emt 0:00:10]} d6 {[%emt 0:00:55]} 12. h3 {[%emt 0:01:25]} a4 {[%emt 0:02:50]} 13. Kh2 {[%emt 0:01:11]} Bd7 {[%emt 0:00:47]} 14. Bd2 {[%emt 0:03:48]} Nd4 {[%emt 0:07:51]} 15. Nc2 {[%emt 0:04:38]} Nxf3+ {[%emt 0:01:09]} 16. Qxf3 {[%emt 0:00:06]} b5 {[%emt 0:05:10]} 17. b4 {[%emt 0:01:15]} axb3 {[%emt 0:03:33]} 18. axb3 {[%emt 0:00:04]} bxc4 {[%emt 0:01:29]} 19. dxc4 {[%emt 0:00:11]} Bc6 {[%emt 0:02:20]} 20. Qe2 {[%emt 0:01:06]} Bb6 {[%emt 0:06:03]} 21. Bc3 {[%emt 0:01:27]} Bb7 {[%emt 0:02:28]} 22. b4 {[%emt 0:08:07]} Rxa1 {[%emt 0:02:02]} 23. Rxa1 {[%emt 0:00:16]} Qd7 {[%emt 0:02:13]} 24. Rd1 {[%emt 0:12:07]} Qe6 {[%emt 0:01:58]} 25. Ra1 {[%emt 0:00:50]} h5 {[%emt 0:04:52]} 26. b5 {[%emt 0:03:55]} g6 {[%emt 0:10:56]} 27. Nb4 {[%emt 0:02:53]} h4 {[%emt 0:05:26]} 28. Nd5 {[%emt 0:00:44]} hxg3+ {[%emt 0:00:37]} 29. fxg3 {[%emt 0:01:31]} Bxd5 {[%emt 0:00:45]} 30. cxd5 {[%emt 0:00:29]} Qe7 {[%emt 0:00:27]} 31. Bd2 {[%emt 0:00:41]} Nh5 {[%emt 0:02:52]} 32. h4 {[%emt 0:00:55]} Bd4 {[%emt 0:00:28]} 33. Ra3 {[%emt 0:00:27]} Bc5 {[%emt 0:01:26]} 34. Ra1 {[%emt 0:01:49]} Bd4 {[%emt 0:00:11]} 35. Ra3 {[%emt 0:00:45]} Bc5 {[%emt 0:00:15]} 36. Ra4 {[%emt 0:00:13]} Kg7 {[%emt 0:00:32]} 37. Bh3 {[%emt 0:01:16]} Rb8 {[%emt 0:01:04]} 38. Ra5 {[%emt 0:07:26]} Qe8 {[%emt 0:00:46]} 39. Kg2 {[%emt 0:02:42]} Ra8 {[%emt 0:02:28]} 40. Bg4 {[%emt 0:00:00]} Nf6 {[%emt 0:00:00]} 41. Bf3 {[%emt 0:01:59]} Rxa5 42. Bxa5 {[%emt 0:00:36]} Bb6 {[%emt 0:05:31]} 43. Bd2 {[%emt 0:02:12]} Qa8 {[%emt 0:01:15]} 44. h5 {[%emt 0:01:21]} gxh5 {[%emt 0:04:57]} 45. Bg5 {[%emt 0:05:22]} Qa1 {[%emt 0:05:46]} 46. Bxf6+ {[%emt 0:00:39]} Kxf6 {[%emt 0:00:08]} 47. Bxh5 {[%emt 0:01:04]} Qg1+ {[%emt 0:00:13]} 48. Kh3 {[%emt 0:00:03]} Qf2 {[%emt 0:03:02]} 1/2-1/2

[Event "POL-chT 1 Liga 2019"]
[Site "Dzwirzyno"]
[Date "2019.09.12"]
[Round "6.8"]
[White "Kislinsky, Alexey"]
[Black "Barski, Radoslaw"]
[Result "0-1"]
[ECO "B23"]
[WhiteElo "2436"]
[BlackElo "2425"]
[Annotator "NA"]
[PlyCount "100"]
[EventDate "2019.09.07"]
[EventType "team-tourn"]
[EventCountry "POL"]
[SourceTitle "playchess.com"]
[Source "ChessBase"]
[SourceQuality "1"]
[TimeControl "40/5400+30:1800+30"]

1. e4 {[%emt 0:00:00]} c5 {[%emt 0:01:21]} 2. Nc3 {[%emt 0:00:00]} a6 {[%emt 0:00:11]} 3. g3 {[%emt 0:00:07]} b5 {[%emt 0:00:14]} 4. Bg2 {[%emt 0:00:08]} Bb7 {[%emt 0:00:06]} 5. d3 {[%emt 0:00:19]} e6 {[%emt 0:00:32]} 6. Nh3 {[%emt 0:00:12]} Nf6 {[%emt 0:04:15]} 7. O-O {[%emt 0:00:49]} b4 {[%emt 0:02:47]} 8. Ne2 {[%emt 0:00:40]} d5 {[%emt 0:02:20]} 9. e5 {[%emt 0:01:39]} Nfd7 {[%emt 0:01:52]} 10. f4 {[%emt 0:00:13]} Be7 {[%emt 0:00:51]} 11. c4 {[%emt 0:02:21]} Nb6 {[%emt 0:02:41]} 12. Be3 {[%emt 0:03:24]} Nc6 {[%emt 0:03:55]} 13. Rc1 {[%emt 0:01:56]} O-O {[%emt 0:02:28]} 14. Nf2 {[%emt 0:02:42]} Qd7 {[%emt 0:09:17]} 15. g4 {[%emt 0:06:25]} Rfd8 {[%emt 0:04:33]} 16. b3 {[%emt 0:05:03]} a5 {[%emt 0:06:49]} 17. g5 {[%emt 0:01:30]} a4 {[%emt 0:04:13]} 18. Ng3 {[%emt 0:00:34]} axb3 {[%emt 0:00:55]} 19. axb3 {[%emt 0:00:06]} dxc4 {[%emt 0:05:54]} 20. bxc4 {[%emt 0:00:48]} Ra2 {[%emt 0:01:36]} 21. Qh5 {[%emt 0:06:35]} Nd4 {[%emt 0:06:33]} 22. Bxb7 {[%emt 0:16:36]} Qxb7 {[%emt 0:00:09]} 23. Bxd4 {[%emt 0:02:53]} Rxd4 {[%emt 0:00:43]} 24. f5 {[%emt 0:01:10]} g6 {[%emt 0:03:47]} 25. fxg6 {[%emt 0:02:04]} hxg6 {[%emt 0:00:06]} 26. Qh3 {[%emt 0:00:24]} Bxg5 {[%emt 0:12:18]} 27. Nge4 {[%emt 0:00:27]} Qe7 {[%emt 0:03:21]} 28. Ng4 {[%emt 0:06:06]} Nd7 {[%emt 0:00:46]} 29. Ra1 {[%emt 0:04:07]} b3 {[%emt 0:08:59]} 30. Rxa2 {[%emt 0:00:19]} bxa2 {[%emt 0:00:04]} 31. Ra1 {[%emt 0:00:11]} Nf8 {[%emt 0:04:36]} 32. Rxa2 {[%emt 0:05:18]} Qb7 {[%emt 0:00:45]} 33. Rf2 {[%emt 0:04:05]} Nh7 {[%emt 0:04:30]} 34. Qf3 {[%emt 0:06:02]} Qe7 {[%emt 0:00:52]} 35. Rb2 {[%emt 0:06:57]} Kg7 {[%emt 0:00:47]} 36. Kg2 {[%emt 0:04:27]} Bh4 {[%emt 0:01:04]} 37. h3 {[%emt 0:03:03]} Bg5 {[%emt 0:01:37]} 38. Rb5 {[%emt 0:01:43]} Qd8 {[%emt 0:00:38]} 39. Rb7 {[%emt 0:00:50]} Be7 {[%emt 0:00:22]} 40. Qe3 {[%emt 0:00:00]} Bg5 {[%emt 0:00:00]} 41. Qf2 {[%emt 0:06:54]} Be7 {[%emt 0:04:36]} 42. Qf4 {[%emt 0:05:16]} g5 {[%emt 0:08:41]} 43. Qf1 {[%emt 0:00:41]} Rd7 {[%emt 0:00:33]} 44. Rb2 {[%emt 0:00:32]} Rxd3 {[%emt 0:04:34]} 45. Rf2 {[%emt 0:00:44]} Qd4 {[%emt 0:01:21]} 46. Rxf7+ {[%emt 0:03:07]} Kg6 {[%emt 0:00:30]} 47. Rf3 {[%emt 0:03:34]} Rd1 {[%emt 0:00:54]} 48. Qf2 {[%emt 0:01:43]} Qxe4 {[%emt 0:00:26]} 49. Kh2 {[%emt 0:00:51]} Qe1 {[%emt 0:05:33]} 50. Qc2+ {[%emt 0:00:35]} Kg7 {[%emt 0:00:02]} 0-1

[Event "POL-chT 1 Liga 2019"]
[Site "Dzwirzyno"]
[Date "2019.09.12"]
[Round "6.9"]
[White "Kosakowski, Jakub"]
[Black "Grabarczyk, Miroslaw"]
[Result "1/2-1/2"]
[ECO "C42"]
[WhiteElo "2411"]
[BlackElo "2374"]
[Annotator "NA"]
[PlyCount "65"]
[EventDate "2019.09.07"]
[EventType "team-tourn"]
[EventCountry "POL"]
[SourceTitle "playchess.com"]
[Source "ChessBase"]
[SourceQuality "1"]
[TimeControl "40/5400+30:1800+30"]

1. e4 {[%emt 0:00:00]} e5 {[%emt 0:00:06]} 2. Nf3 {[%emt 0:00:00]} Nf6 {[%emt 0:00:16]} 3. Nxe5 {[%emt 0:00:46]} d6 {[%emt 0:00:11]} 4. Nc4 {[%emt 0:00:55]} Nxe4 {[%emt 0:00:54]} 5. Qe2 {[%emt 0:00:38]} Qe7 {[%emt 0:00:51]} 6. Ne3 {[%emt 0:00:10]} c6 {[%emt 0:11:47]} 7. b3 Nf6 {[%emt 0:12:44]} 8. Bb2 {[%emt 0:02:45]} Be6 {[%emt 0:03:16]} 9. g3 {[%emt 0:02:35]} g6 {[%emt 0:05:35]} 10. Bg2 {[%emt 0:02:49]} Bg7 {[%emt 0:00:18]} 11. O-O {[%emt 0:00:34]} O-O {[%emt 0:00:40]} 12. c4 {[%emt 0:00:51]} Na6 {[%emt 0:09:54]} 13. Nc3 {[%emt 0:01:30]} Qd7 {[%emt 0:05:34]} 14. d4 {[%emt 0:37:59]} d5 {[%emt 0:04:00]} 15. cxd5 {[%emt 0:00:13]} Nxd5 {[%emt 0:00:19]} 16. Ncxd5 {[%emt 0:00:08]} cxd5 {[%emt 0:00:07]} 17. Rac1 {[%emt 0:00:05]} Rad8 {[%emt 0:06:37]} 18. Qd2 {[%emt 0:03:24]} Nb8 {[%emt 0:01:24]} 19. Rc5 {[%emt 0:00:41]} b6 {[%emt 0:04:38]} 20. Rc2 {[%emt 0:02:07]} Nc6 {[%emt 0:02:29]} 21. Rfc1 {[%emt 0:02:05]} Rc8 {[%emt 0:00:29]} 22. Bf1 {[%emt 0:09:53]} Qb7 {[%emt 0:00:48]} 23. Bb5 {[%emt 0:04:13]} Nb8 {[%emt 0:06:26]} 24. Be2 {[%emt 0:13:48]} Rxc2 {[%emt 0:01:48]} 25. Rxc2 {[%emt 0:00:05]} Rc8 {[%emt 0:00:31]} 26. Bf3 {[%emt 0:01:37]} Rxc2 {[%emt 0:01:41]} 27. Qxc2 {[%emt 0:00:05]} Qc6 {[%emt 0:00:44]} 28. Qe2 {[%emt 0:03:03]} Bf8 {[%emt 0:12:54]} 29. h4 {[%emt 0:00:29]} Qd7 {[%emt 0:01:14]} 30. Bg2 {[%emt 0:01:53]} Nc6 {[%emt 0:01:37]} 31. Qb5 {[%emt 0:05:53]} Bg7 {[%emt 0:00:15]} 32. Nxd5 {[%emt 0:03:04]} Nxd4 {[%emt 0:00:20]} 33. Qxd7 {[%emt 0:00:36]} 1/2-1/2

[Event "POL-chT 1 Liga 2019"]
[Site "Dzwirzyno"]
[Date "2019.09.12"]
[Round "6.10"]
[White "Sabuk, Piotr"]
[Black "Walter, Szymon"]
[Result "0-1"]
[ECO "E12"]
[WhiteElo "2397"]
[BlackElo "2311"]
[Annotator "NA"]
[PlyCount "68"]
[EventDate "2019.09.07"]
[EventType "team-tourn"]
[EventCountry "POL"]
[SourceTitle "playchess.com"]
[Source "ChessBase"]
[SourceQuality "1"]
[TimeControl "40/5400+30:1800+30"]

1. d4 {[%emt 0:00:56]} Nf6 {[%emt 0:00:45]} 2. c4 {[%emt 0:00:06]} e6 {[%emt 0:01:07]} 3. Nf3 {[%emt 0:00:30]} b6 {[%emt 0:00:30]} 4. a3 {[%emt 0:00:30]} Bb7 {[%emt 0:00:30]} 5. Bf4 {[%emt 0:00:30]} Be7 {[%emt 0:00:30]} 6. Nc3 {[%emt 0:00:30]} d5 {[%emt 0:00:30]} 7. cxd5 {[%emt 0:00:30]} exd5 {[%emt 0:00:30]} 8. g3 {[%emt 0:19:55]} O-O {[%emt 0:07:17]} 9. Bg2 {[%emt 0:00:09]} Bd6 {[%emt 0:10:00]} 10. Ne5 {[%emt 0:08:48]} Qe7 {[%emt 0:43:00]} 11. O-O {[%emt 0:02:03]} Nbd7 {[%emt 0:03:03]} 12. Nxd7 {[%emt 0:17:05]} Qxd7 {[%emt 0:00:20]} 13. Bxd6 {[%emt 0:03:49]} Qxd6 {[%emt 0:00:12]} 14. Rc1 {[%emt 0:02:27]} a6 {[%emt 0:01:10]} 15. Qc2 {[%emt 0:01:41]} Rfe8 {[%emt 0:01:33]} 16. e3 {[%emt 0:04:31]} Re7 {[%emt 0:02:06]} 17. Ne2 {[%emt 0:01:02]} Rae8 {[%emt 0:03:25]} 18. Qf5 {[%emt 0:01:21]} Ne4 {[%emt 0:04:25]} 19. Rc2 {[%emt 0:03:30]} c5 {[%emt 0:04:39]} 20. dxc5 {[%emt 0:00:50]} bxc5 {[%emt 0:01:19]} 21. Rd1 {[%emt 0:07:18]} Re5 {[%emt 0:06:10]} 22. Qf4 {[%emt 0:02:06]} g5 {[%emt 0:02:15]} 23. Qg4 {[%emt 0:06:55]} Bc8 {[%emt 0:01:49]} 24. Qh5 {[%emt 0:03:57]} Nf6 {[%emt 0:01:44]} 25. Qh6 {[%emt 0:00:01]} Qe7 {[%emt 0:01:29]} 26. b4 {[%emt 0:03:25]} Ng4 {[%emt 0:01:20]} 27. Qb6 {[%emt 0:01:58]} Rxe3 {[%emt 0:00:28]} 28. Bf1 {[%emt 0:03:09]} Bf5 {[%emt 0:00:15]} 29. Rcd2 {[%emt 0:00:32]} Nxf2 {[%emt 0:01:24]} 30. Kxf2 {[%emt 0:02:17]} Rf3+ {[%emt 0:00:04]} 31. Kxf3 {[%emt 0:00:29]} Qe3+ 32. Kg2 Be4+ {[%emt 0:00:34]} 33. Kh3 {[%emt 0:00:04]} Qf3 {[%emt 0:01:20]} 34. Qh6 {[%emt 0:03:30]} Bf5# {[%emt 0:00:04]} 0-1

[Event "POL-chT 1 Liga 2019"]
[Site "Dzwirzyno"]
[Date "2019.09.12"]
[Round "6.11"]
[White "Dzierzak, Radoslaw"]
[Black "Kucza, Karol"]
[Result "1-0"]
[ECO "C42"]
[WhiteElo "2253"]
[BlackElo "2280"]
[Annotator "NA"]
[PlyCount "53"]
[EventDate "2019.09.07"]
[EventType "team-tourn"]
[EventCountry "POL"]
[SourceTitle "playchess.com"]
[Source "ChessBase"]
[SourceQuality "1"]
[TimeControl "40/5400+30:1800+30"]

1. e4 {[%emt 0:00:00]} e5 {[%emt 0:00:00]} 2. Nf3 {[%emt 0:00:00]} Nf6 {[%emt 0:00:00]} 3. Nxe5 {[%emt 0:00:00]} d6 {[%emt 0:00:00]} 4. Nf3 {[%emt 0:00:00]} Nxe4 {[%emt 0:00:03]} 5. Nc3 {[%emt 0:00:00]} Nxc3 {[%emt 0:00:06]} 6. dxc3 {[%emt 0:00:04]} Be7 {[%emt 0:00:49]} 7. Be3 {[%emt 0:00:08]} Nd7 {[%emt 0:01:07]} 8. Qd2 {[%emt 0:01:17]} O-O {[%emt 0:01:17]} 9. O-O-O {[%emt 0:01:19]} Nf6 {[%emt 0:01:13]} 10. Bd3 {[%emt 0:07:34]} c5 {[%emt 0:03:45]} 11. Kb1 {[%emt 0:12:09]} Qa5 {[%emt 0:06:44]} 12. c4 {[%emt 0:04:28]} Qxd2 {[%emt 0:13:13]} 13. Rxd2 {[%emt 0:03:36]} b6 {[%emt 0:00:51]} 14. Re1 {[%emt 0:05:32]} Re8 {[%emt 0:01:58]} 15. Rde2 {[%emt 0:07:47]} Bf8 {[%emt 0:12:08]} 16. Bg5 {[%emt 0:02:09]} Rxe2 {[%emt 0:00:24]} 17. Rxe2 {[%emt 0:00:13]} Nd7 {[%emt 0:24:34]} 18. Be4 {[%emt 0:04:11]} Rb8 {[%emt 0:00:04]} 19. Bc6 {[%emt 0:01:55]} f6 {[%emt 0:05:01]} 20. Bd5+ {[%emt 0:10:32]} Kh8 {[%emt 0:00:07]} 21. Re8 {[%emt 0:01:26]} fxg5 {[%emt 0:05:27]} 22. Nxg5 {[%emt 0:01:01]} Ba6 {[%emt 0:00:15]} 23. Nf7+ {[%emt 0:01:13]} Kg8 {[%emt 0:00:05]} 24. Nxd6+ {[%emt 0:06:07]} Kh8 {[%emt 0:00:06]} 25. Nf7+ {[%emt 0:00:04]} Kg8 {[%emt 0:00:04]} 26. Nd8+ {[%emt 0:00:06]} Kh8 {[%emt 0:00:09]} 27. Be6 {[%emt 0:01:02]} 1-0

[Event "POL-chT 1 Liga 2019"]
[Site "Dzwirzyno"]
[Date "2019.09.12"]
[Round "6.12"]
[White "Kantane, Anna"]
[Black "Malicka, Maria"]
[Result "1-0"]
[ECO "C47"]
[WhiteElo "2273"]
[BlackElo "2095"]
[Annotator "NA"]
[PlyCount "91"]
[EventDate "2019.09.07"]
[EventType "team-tourn"]
[EventCountry "POL"]
[SourceTitle "playchess.com"]
[Source "ChessBase"]
[SourceQuality "1"]
[TimeControl "40/5400+30:1800+30"]

1. e4 {[%emt 0:00:09]} e5 {[%emt 0:00:00]} 2. Nf3 {[%emt 0:00:07]} Nc6 {[%emt 0:00:00]} 3. Nc3 {[%emt 0:00:34]} Nf6 {[%emt 0:00:00]} 4. d4 {[%emt 0:00:18]} exd4 {[%emt 0:00:14]} 5. Nxd4 {[%emt 0:00:09]} Bb4 {[%emt 0:00:11]} 6. Nxc6 {[%emt 0:00:23]} bxc6 {[%emt 0:00:07]} 7. Qd4 {[%emt 0:00:06]} Qe7 {[%emt 0:08:19]} 8. f3 {[%emt 0:01:51]} c5 {[%emt 0:12:03]} 9. Qf2 {[%emt 0:00:22]} O-O {[%emt 0:02:21]} 10. Bd2 {[%emt 0:00:40]} d5 {[%emt 0:01:27]} 11. a3 {[%emt 0:00:37]} Bxc3 {[%emt 0:01:42]} 12. Bxc3 {[%emt 0:00:10]} dxe4 {[%emt 0:04:06]} 13. O-O-O {[%emt 0:00:39]} Bb7 {[%emt 0:08:08]} 14. Qg3 {[%emt 0:25:20]} Rad8 {[%emt 0:03:12]} 15. Bc4 {[%emt 0:17:54]} exf3 {[%emt 0:12:22]} 16. Bd3 {[%emt 0:11:01]} Rd6 {[%emt 0:20:40]} 17. Rhe1 {[%emt 0:08:09]} Re6 {[%emt 0:00:35]} 18. gxf3 {[%emt 0:03:15]} Rd8 {[%emt 0:01:45]} 19. Qh4 {[%emt 0:07:26]} Re8 {[%emt 0:10:12]} 20. Bxf6 {[%emt 0:10:14]} Qxf6 {[%emt 0:00:07]} 21. Qxh7+ {[%emt 0:01:35]} Kf8 {[%emt 0:00:03]} 22. Rxe6 {[%emt 0:03:02]} Rxe6 {[%emt 0:01:25]} 23. Qh8+ {[%emt 0:01:12]} Ke7 {[%emt 0:00:02]} 24. Qb8 {[%emt 0:02:57]} Qf4+ {[%emt 0:00:19]} 25. Kb1 {[%emt 0:00:03]} Bxf3 {[%emt 0:05:16]} 26. Rf1 {[%emt 0:01:02]} Rb6 {[%emt 0:02:14]} 27. Qxa7 {[%emt 0:00:48]} Qe5 {[%emt 0:01:40]} 28. b3 {[%emt 0:00:25]} Bb7 {[%emt 0:02:33]} 29. Qa5 {[%emt 0:00:25]} Kf8 {[%emt 0:01:06]} 30. Rf5 {[%emt 0:02:49]} Qd6 {[%emt 0:00:25]} 31. Qxc5 {[%emt 0:00:20]} Qxc5 {[%emt 0:00:10]} 32. Rxc5 {[%emt 0:00:01]} Rc6 {[%emt 0:00:56]} 33. Rxc6 {[%emt 0:01:13]} Bxc6 {[%emt 0:00:01]} 34. Kb2 {[%emt 0:00:51]} Ke7 {[%emt 0:00:08]} 35. Kc3 {[%emt 0:00:06]} Kd6 {[%emt 0:00:11]} 36. Kd4 {[%emt 0:00:02]} Bd7 {[%emt 0:01:29]} 37. b4 {[%emt 0:00:04]} f5 {[%emt 0:00:59]} 38. c4 {[%emt 0:00:25]} g5 {[%emt 0:01:17]} 39. c5+ {[%emt 0:00:46]} Ke6 {[%emt 0:00:05]} 40. b5 {[%emt 0:00:00]} f4 {[%emt 0:00:00]} 41. c6 {[%emt 0:13:08]} Bc8 {[%emt 0:00:40]} 42. a4 {[%emt 0:00:55]} Kd6 {[%emt 0:00:20]} 43. a5 {[%emt 0:03:17]} g4 {[%emt 0:00:05]} 44. Be4 f3 45. a6 {[%emt 0:06:45]} f2 {[%emt 0:00:24]} 46. Bg2 {[%emt 0:00:09] Kd5+ Ke4+} 1-0

[Event "POL-chT 1 Liga 2019"]
[Site "Dzwirzyno"]
[Date "2019.09.12"]
[Round "6.13"]
[White "Kolago, Marcin"]
[Black "Sopur, Lech"]
[Result "1/2-1/2"]
[ECO "C68"]
[WhiteElo "2340"]
[BlackElo "2417"]
[Annotator "NA"]
[PlyCount "78"]
[EventDate "2019.09.07"]
[EventType "team-tourn"]
[EventCountry "POL"]
[SourceTitle "playchess.com"]
[Source "ChessBase"]
[SourceQuality "1"]
[TimeControl "40/5400+30:1800+30"]

1. e4 {[%emt 0:00:00]} e5 {[%emt 0:00:00]} 2. Nf3 {[%emt 0:00:00]} Nc6 {[%emt 0:00:08]} 3. Bb5 {[%emt 0:00:00]} a6 {[%emt 0:00:15]} 4. Bxc6 {[%emt 0:00:28]} dxc6 {[%emt 0:00:25]} 5. Nc3 {[%emt 0:00:21]} f6 {[%emt 0:01:36]} 6. d4 {[%emt 0:00:29]} Bg4 {[%emt 0:01:04]} 7. dxe5 {[%emt 0:01:50]} Qxd1+ {[%emt 0:00:23]} 8. Nxd1 {[%emt 0:00:20]} Bxf3 {[%emt 0:00:11]} 9. gxf3 {[%emt 0:00:04]} fxe5 {[%emt 0:00:08]} 10. Ne3 {[%emt 0:02:53]} Bd6 {[%emt 0:26:27]} 11. h4 {[%emt 0:03:11]} Nf6 {[%emt 0:08:22]} 12. h5 {[%emt 0:04:12]} Kf7 {[%emt 0:06:51]} 13. Ng4 {[%emt 0:02:40]} Ke6 {[%emt 0:06:31]} 14. Be3 {[%emt 0:01:09]} Nxg4 {[%emt 0:07:24]} 15. fxg4 {[%emt 0:00:04]} Rhf8 {[%emt 0:00:06]} 16. Ke2 {[%emt 0:01:11]} Rf7 {[%emt 0:02:33]} 17. Rh3 {[%emt 0:01:18]} Raf8 {[%emt 0:00:57]} 18. Rg1 {[%emt 0:00:55]} Bb4 {[%emt 0:03:08]} 19. g5 {[%emt 0:05:54]} Rd7 {[%emt 0:00:23]} 20. g6 {[%emt 0:00:39]} h6 {[%emt 0:00:35]} 21. Rd1 {[%emt 0:00:16]} Rd6 {[%emt 0:02:52]} 22. Rd3 {[%emt 0:02:54]} Rxd3 {[%emt 0:05:01]} 23. cxd3 {[%emt 0:04:03]} Be7 {[%emt 0:06:25]} 24. d4 {[%emt 0:10:27]} Bf6 {[%emt 0:00:25]} 25. dxe5 {[%emt 0:02:54]} Kxe5 {[%emt 0:00:10]} 26. f3 {[%emt 0:01:18]} Rd8 {[%emt 0:03:57]} 27. Rh1 {[%emt 0:01:54]} b6 {[%emt 0:02:20]} 28. Rd1 {[%emt 0:04:15]} Rd6 {[%emt 0:00:21]} 29. Rd3 {[%emt 0:03:03]} c5 {[%emt 0:04:27]} 30. b3 {[%emt 0:00:23]} Ke6 {[%emt 0:00:15]} 31. f4 {[%emt 0:10:46]} Bd4 {[%emt 0:00:06]} 32. Kf3 {[%emt 0:01:48]} Bxe3 {[%emt 0:06:17]} 33. Kxe3 {[%emt 0:01:07]} Rxd3+ {[%emt 0:00:07]} 34. Kxd3 {[%emt 0:00:05]} b5 {[%emt 0:00:04]} 35. Ke3 {[%emt 0:02:47]} a5 {[%emt 0:01:51]} 36. Kd3 {[%emt 0:00:47]} Kf6 {[%emt 0:00:21]} 37. Ke3 {[%emt 0:02:37]} Ke6 {[%emt 0:00:55]} 38. Kd3 {[%emt 0:00:39]} Kf6 {[%emt 0:01:11]} 39. Ke3 {Kf5 e5 Kg4 Kd3 Kf5 Ke4+} Ke6 1/2-1/2